fUST/lending_fUST_20260605
["ID","MTS","AMOUNT","RATE_DAILY","PERIOD"]
[424164714,1780621855000,-300.0,0.00035,120]
[424164681,1780621855000,-1540.31119375,0.000338,120]
[424164689,1780621855000,-1000.0,0.00034,120]
[424164692,1780621855000,-1000.0,0.00034261,30]
[424164691,1780621855000,-355.0,0.00034246,2]
[424164693,1780621855000,-1000.0,0.00034261,30]
[424164694,1780621855000,-1000.0,0.00034261,30]
[424164726,1780621855000,-3073.17635346,0.000358,120]
[424164695,1780621855000,-355.0,0.0003452,3]
[424164696,1780621855000,-500.0,0.00034521,16]
[424164698,1780621855000,-500.0,0.00034521,16]
[424164699,1780621855000,-1750.7718219,0.00034657,120]
[424164697,1780621855000,-500.0,0.00034521,16]
[424164700,1780621855000,-1399.23901791,0.00034728,12]
[424164712,1780621855000,-150.0,0.00035,69]
[424164701,1780621855000,-355.0,0.00034794,4]
[424164690,1780621855000,-150.2438722,0.00034,30]
[424164704,1780621855000,-1605.80984268,0.000348,120]
[424164711,1780621855000,-1000.0,0.00035,20]
[424164716,1780621855000,-100000.0,0.00035,30]
[424164725,1780621855000,-1017.23030408,0.000358,120]
[424164715,1780621855000,-4151.21616566,0.00035,120]
[424164710,1780621855000,-221.86274183,0.00035,30]
[424164708,1780621855000,-10835.47518062,0.00035,2]
[424164709,1780621855000,-20000.0,0.00035,6]
[424164707,1780621855000,-50000.0,0.000349,120]
[424164705,1780621855000,-1236.30723861,0.000348,120]
[424164706,1780621855000,-881.09729984,0.0003484,10]
[424164703,1780621855000,-3073.17635346,0.000348,120]
[424164713,1780621855000,-26000.0,0.00035,3]
[424164702,1780621855000,-1017.23030408,0.000348,120]
[424164764,1780621856000,-161.503,0.00037773,49]
[424164753,1780621856000,-181.50517912,0.00037,120]
[424164761,1780621856000,-1000.0,0.00037687,30]
[424164770,1780621856000,-145184.836088,0.00038,120]
[424164762,1780621856000,-1000.0,0.00037687,30]
[424164763,1780621856000,-308.0,0.00037687,30]
[424164760,1780621856000,-355.0,0.00037534,14]
[424164751,1780621856000,-2000.0,0.00037,120]
[424164754,1780621856000,-156.0,0.00037,120]
[424164749,1780621856000,-2055.13629996,0.00037,2]
[424164757,1780621856000,-168.0,0.000375,120]
[424164758,1780621856000,-150.0,0.000375,112]
[424164756,1780621856000,-578.0,0.000374,2]
[424164755,1780621856000,-355.0,0.0003726,13]
[424164750,1780621856000,-700.0,0.00037,120]
[424164766,1780621856000,-355.0,0.00037808,15]
[424164752,1780621856000,-1000.0,0.00037,120]
[424164767,1780621856000,-29082.82148387,0.0003784,120]
[424164759,1780621856000,-4281.92974446,0.000375,120]
[424164768,1780621856000,-2000.0,0.000379,120]
[424164765,1780621856000,-1027.00193303,0.000378,2]
[424164785,1780621856000,-18104.60685398,0.00038398,120]
[424164786,1780621856000,-566.36253912,0.00038398,120]
[424164784,1780621856000,-25232.572156,0.000332,117]
[424164782,1780621856000,-500.0,0.00013698,2]
[424164773,1780621856000,-1017.23030408,0.00038,120]
[424164776,1780621856000,-1236.30723861,0.00038,120]
[424164775,1780621856000,-1605.80984268,0.00038,120]
[424164780,1780621856000,-347.29194163,0.00038356,2]
[424164783,1780621856000,-31753.63939348,0.000332,117]
[424164787,1780621856000,48064.0,0.00022,120]
[424164778,1780621856000,-355.0,0.00038356,17]
[424164781,1780621856000,-27458.10819842,0.00038398,120]
[424164769,1780621856000,-165.17072855,0.00037921,14]
[424164777,1780621856000,-355.0,0.00038082,16]
[424164779,1780621856000,-200.0,0.00038356,2]
[424164771,1780621856000,-400.0,0.00038,120]
[424164772,1780621856000,-168.0,0.00038,120]
[424164774,1780621856000,-3073.17635346,0.00038,120]
[424164798,1780622038000,5000.0,0.00023288,120]
[424164908,1780622530000,191562.81038763,7.6e-05,2]
[424164925,1780623023000,151.0,0.0002,120]
[424164926,1780623024000,151.0,0.000223,120]
[424164959,1780623032000,-969.31201998,9.415e-05,2]
[424165370,1780623038000,-368.1463582,0.00010086,7]
[424165373,1780623038000,-232.36,0.00013128,2]
[424165378,1780623038000,-500.0,0.00013698,2]
[424165377,1780623038000,-500.0,0.00013698,2]
[424165374,1780623038000,-168.458098,0.00013413,2]
[424165375,1780623038000,-239.0,0.00013697,2]
[424165369,1780623038000,-510.47580217,0.0001,2]
[424165372,1780623038000,-509.39431172,0.00012548,2]
[424165368,1780623038000,-4030.68798002,9.415e-05,2]
[424165376,1780623038000,-500.0,0.00013698,2]
[424165371,1780623038000,-447.7819382,0.00012152,2]
[424165379,1780623038000,-500.0,0.00013698,2]
[424165428,1780623039000,-500.0,0.00013698,2]
[424165426,1780623039000,-500.0,0.00013698,2]
[424165427,1780623039000,-500.0,0.00013698,2]
[424165421,1780623039000,-500.0,0.00013698,2]
[424165419,1780623039000,-534.06988833,0.00013698,2]
[424165417,1780623039000,-500.0,0.00013698,2]
[424165429,1780623039000,-500.0,0.00013698,2]
[424165418,1780623039000,-500.0,0.00013698,2]
[424165411,1780623039000,-500.0,0.00013698,2]
[424165412,1780623039000,-500.0,0.00013698,2]
[424165410,1780623039000,-500.0,0.00013698,2]
[424165408,1780623039000,-500.0,0.00013698,2]
[424165420,1780623039000,-500.0,0.00013698,2]
[424165437,1780623039000,-500.0,0.00013698,2]
[424165425,1780623039000,-500.0,0.00013698,2]
[424165422,1780623039000,-500.0,0.00013698,2]
[424165423,1780623039000,-500.0,0.00013698,2]
[424165430,1780623039000,-500.0,0.00013698,2]
[424165431,1780623039000,-500.0,0.00013698,2]
[424165435,1780623039000,-448.28434403,0.00013698,2]
[424165440,1780623039000,-500.0,0.00013698,2]
[424165434,1780623039000,-51.71565597,0.00013698,2]
[424165439,1780623039000,-500.0,0.00013698,2]
[424165442,1780623039000,-500.0,0.00013698,2]
[424165436,1780623039000,-500.0,0.00013698,2]
[424165441,1780623039000,-500.0,0.00013698,2]
[424165438,1780623039000,-500.0,0.00013698,2]
[424165416,1780623039000,-500.0,0.00013698,2]
[424165424,1780623039000,-500.0,0.00013698,2]
[424165414,1780623039000,-500.0,0.00013698,2]
[424165392,1780623039000,-500.0,0.00013698,2]
[424165415,1780623039000,-500.0,0.00013698,2]
[424165432,1780623039000,-500.0,0.00013698,2]
[424165381,1780623039000,-500.0,0.00013698,2]
[424165380,1780623039000,-500.0,0.00013698,2]
[424165382,1780623039000,-500.0,0.00013698,2]
[424165390,1780623039000,-1000.0,0.00013698,2]
[424165389,1780623039000,-500.0,0.00013698,2]
[424165384,1780623039000,-583.63,0.00013698,2]
[424165386,1780623039000,-588.86,0.00013698,2]
[424165387,1780623039000,-469.31201998,0.00013698,2]
[424165385,1780623039000,-500.0,0.00013698,2]
[424165388,1780623039000,-500.0,0.00013698,2]
[424165383,1780623039000,-500.0,0.00013698,2]
[424165391,1780623039000,-500.0,0.00013698,2]
[424165409,1780623039000,-500.0,0.00013698,2]
[424165393,1780623039000,-500.0,0.00013698,2]
[424165397,1780623039000,-500.0,0.00013698,2]
[424165399,1780623039000,-500.0,0.00013698,2]
[424165398,1780623039000,-500.0,0.00013698,2]
[424165403,1780623039000,-500.0,0.00013698,2]
[424165402,1780623039000,-500.0,0.00013698,2]
[424165400,1780623039000,-500.0,0.00013698,2]
[424165401,1780623039000,-500.0,0.00013698,2]
[424165395,1780623039000,-500.0,0.00013698,2]
[424165405,1780623039000,-500.0,0.00013698,2]
[424165404,1780623039000,-500.0,0.00013698,2]
[424165407,1780623039000,-500.0,0.00013698,2]
[424165413,1780623039000,-500.0,0.00013698,2]
[424165406,1780623039000,-500.0,0.00013698,2]
[424165394,1780623039000,-500.0,0.00013698,2]
[424165433,1780623039000,-500.0,0.00013698,2]
[424165396,1780623039000,-500.0,0.00013698,2]
[424165443,1780623039000,-500.0,0.00013698,2]
[424165479,1780623039000,-453.51650203,0.00013698,2]
[424165476,1780623039000,-500.0,0.00013698,2]
[424165480,1780623039000,-500.0,0.00013698,2]
[424165477,1780623039000,-500.0,0.00013698,2]
[424165481,1780623039000,-500.0,0.00013698,2]
[424165483,1780623039000,-500.0,0.00013698,2]
[424165484,1780623039000,-500.0,0.00013698,2]
[424165486,1780623039000,-500.0,0.00013698,2]
[424165488,1780623039000,-500.0,0.00013698,2]
[424165485,1780623039000,-500.0,0.00013698,2]
[424165487,1780623039000,-500.0,0.00013698,2]
[424165489,1780623039000,-346.75,0.00013698,2]
[424165495,1780623039000,-500.0,0.00013698,2]
[424165491,1780623039000,-500.0,0.00013698,2]
[424165492,1780623039000,-500.0,0.00013698,2]
[424165493,1780623039000,-500.0,0.00013698,2]
[424165490,1780623039000,-500.0,0.00013698,2]
[424165494,1780623039000,-634.57707293,0.00013698,2]
[424165497,1780623039000,-500.0,0.00013698,2]
[424165496,1780623039000,-500.0,0.00013698,2]
[424165499,1780623039000,-1000.0,0.00013699,2]
[424165498,1780623039000,-558.73381868,0.00013698,2]
[424165500,1780623039000,-600.0,0.00013765,2]
[424165501,1780623039000,-300.0,0.00013971,2]
[424165504,1780623039000,-500.0,0.00013972,2]
[424165503,1780623039000,-500.0,0.00013972,2]
[424165502,1780623039000,-500.0,0.00013972,2]
[424165506,1780623039000,-500.0,0.00013972,2]
[424165444,1780623039000,-500.0,0.00013698,2]
[424165475,1780623039000,-500.0,0.00013698,2]
[424165482,1780623039000,-500.0,0.00013698,2]
[424165505,1780623039000,-500.0,0.00013972,2]
[424165472,1780623039000,-500.0,0.00013698,2]
[424165446,1780623039000,-164.30900787,0.00013698,2]
[424165445,1780623039000,-500.0,0.00013698,2]
[424165447,1780623039000,-500.0,0.00013698,2]
[424165449,1780623039000,-500.17397271,0.00013698,2]
[424165453,1780623039000,-500.0,0.00013698,2]
[424165455,1780623039000,-500.0,0.00013698,2]
[424165448,1780623039000,-500.0,0.00013698,2]
[424165450,1780623039000,-500.0,0.00013698,2]
[424165478,1780623039000,-500.0,0.00013698,2]
[424165452,1780623039000,-500.14661618,0.00013698,2]
[424165454,1780623039000,-336.49,0.00013698,2]
[424165457,1780623039000,-500.0,0.00013698,2]
[424165456,1780623039000,-500.4372812,0.00013698,2]
[424165459,1780623039000,-500.13859997,0.00013698,2]
[424165451,1780623039000,-500.0,0.00013698,2]
[424165465,1780623039000,-500.0,0.00013698,2]
[424165474,1780623039000,-500.61446561,0.00013698,2]
[424165458,1780623039000,-500.0,0.00013698,2]
[424165473,1780623039000,-507.33168212,0.00013698,2]
[424165471,1780623039000,-500.0,0.00013698,2]
[424165469,1780623039000,-500.0,0.00013698,2]
[424165468,1780623039000,-500.0,0.00013698,2]
[424165470,1780623039000,-500.0,0.00013698,2]
[424165464,1780623039000,-500.0,0.00013698,2]
[424165463,1780623039000,-204.11397081,0.00013698,2]
[424165466,1780623039000,-500.0,0.00013698,2]
[424165460,1780623039000,-500.0,0.00013698,2]
[424165461,1780623039000,-500.0,0.00013698,2]
[424165462,1780623039000,-500.0,0.00013698,2]
[424165467,1780623039000,-500.0,0.00013698,2]
[424165549,1780623040000,-500.0,0.00013972,2]
[424165553,1780623040000,-500.0,0.00014246,2]
[424165552,1780623040000,-500.0,0.00014246,2]
[424165551,1780623040000,-500.0,0.00014246,2]
[424165548,1780623040000,-212.7162557,0.00013972,2]
[424165539,1780623040000,-500.0,0.00013972,2]
[424165540,1780623040000,-649.9,0.00013972,2]
[424165544,1780623040000,-500.0,0.00013972,2]
[424165541,1780623040000,-500.0,0.00013972,2]
[424165537,1780623040000,-500.0,0.00013972,2]
[424165542,1780623040000,-500.0,0.00013972,2]
[424165547,1780623040000,-500.0,0.00013972,2]
[424165550,1780623040000,-524.39078806,0.00013972,2]
[424165566,1780623040000,-500.0,0.00015342,2]
[424165555,1780623040000,-500.0,0.00014246,2]
[424165558,1780623040000,-500.0,0.0001452,2]
[424165556,1780623040000,-500.0,0.00014246,2]
[424165559,1780623040000,-366.9458814,0.0001452,2]
[424165561,1780623040000,-500.0,0.00014794,2]
[424165560,1780623040000,-275.2376979,0.00014762,2]
[424165571,1780623040000,-864.0,0.00016656,2]
[424165563,1780623040000,-500.0,0.00015068,2]
[424165572,1780623040000,-495.42785622,0.00016803,2]
[424165562,1780623040000,-500.0,0.00014794,2]
[424165573,1780623040000,-316.51546596,0.00017798,2]
[424165565,1780623040000,-720.0,0.00015141,2]
[424165545,1780623040000,-500.0,0.00013972,2]
[424165557,1780623040000,-500.0,0.0001452,2]
[424165543,1780623040000,-213.25,0.00013972,2]
[424165522,1780623040000,-297.64,0.00013972,2]
[424165535,1780623040000,-500.0,0.00013972,2]
[424165564,1780623040000,-481.78191579,0.00015068,2]
[424165507,1780623040000,-374.63,0.00013972,2]
[424165508,1780623040000,-500.0,0.00013972,2]
[424165509,1780623040000,-500.0,0.00013972,2]
[424165519,1780623040000,-500.0,0.00013972,2]
[424165520,1780623040000,-500.0,0.00013972,2]
[424165511,1780623040000,-500.0,0.00013972,2]
[424165510,1780623040000,-500.0,0.00013972,2]
[424165521,1780623040000,-358.34391089,0.00013972,2]
[424165513,1780623040000,-203.52,0.00013972,2]
[424165512,1780623040000,-500.0,0.00013972,2]
[424165516,1780623040000,-500.0,0.00013972,2]
[424165514,1780623040000,-500.0,0.00013972,2]
[424165538,1780623040000,-500.0,0.00013972,2]
[424165515,1780623040000,-500.0,0.00013972,2]
[424165517,1780623040000,-500.0,0.00013972,2]
[424165526,1780623040000,-500.0,0.00013972,2]
[424165523,1780623040000,-500.0,0.00013972,2]
[424165524,1780623040000,-500.0,0.00013972,2]
[424165525,1780623040000,-500.0,0.00013972,2]
[424165533,1780623040000,-500.0,0.00013972,2]
[424165529,1780623040000,-500.0,0.00013972,2]
[424165531,1780623040000,-500.0,0.00013972,2]
[424165534,1780623040000,-500.0,0.00013972,2]
[424165528,1780623040000,-500.0,0.00013972,2]
[424165527,1780623040000,-500.0,0.00013972,2]
[424165536,1780623040000,-500.0,0.00013972,2]
[424165546,1780623040000,-532.8896707,0.00013972,2]
[424165518,1780623040000,-500.0,0.00013972,2]
[424165567,1780623040000,-500.0,0.00015616,2]
[424165554,1780623040000,-580.04872,0.00014246,2]
[424165569,1780623040000,-500.0,0.00016164,2]
[424165610,1780623040000,-151.0,0.000246,120]
[424165611,1780623040000,-380.0,0.00024658,2]
[424165613,1780623040000,-886.7938,0.00025444,2]
[424165603,1780623040000,-160.0,0.00023,2]
[424165607,1780623040000,-1000.0,0.00024385,10]
[424165606,1780623040000,-186.0,0.00023445,120]
[424165605,1780623040000,-181.26,0.00023431,2]
[424165604,1780623040000,-151.74320546,0.00023375,2]
[424165614,1780623040000,-186.0,0.00025445,120]
[424165615,1780623040000,-185.0,0.00025751,2]
[424165617,1780623040000,-767.92208879,0.00026,30]
[424165616,1780623040000,-77640.56068573,0.00026,30]
[424165619,1780623040000,-1000.0,0.00026824,30]
[424165612,1780623040000,-153.28,0.00025431,30]
[424165623,1780623040000,-151.0,0.000292,120]
[424165620,1780623040000,-1000.0,0.00026824,30]
[424165624,1780623040000,-1000.0,0.00029506,30]
[424165626,1780623040000,-579.0,0.00029506,30]
[424165622,1780623040000,-185.0,0.00028751,2]
[424165621,1780623040000,-151.0,0.000269,120]
[424165627,1780623040000,-187.3688721,0.00029601,30]
[424165628,1780623040000,-247.26144772,0.0003,120]
[424165631,1780623040000,-614.63527069,0.0003,120]
[424165630,1780623040000,-203.44606082,0.0003,120]
[424165629,1780623040000,-320.96196854,0.0003,120]
[424165633,1780623040000,-247.26144772,0.000309,120]
[424165632,1780623040000,-509.04350939,0.000303,5]
[424165570,1780623040000,-539.93444838,0.00016438,2]
[424165618,1780623040000,-767.92208879,0.000268,30]
[424165602,1780623040000,-185.0,0.00022751,2]
[424165625,1780623040000,-1000.0,0.00029506,30]
[424165609,1780623040000,-186.0,0.00024445,120]
[424165568,1780623040000,-500.0,0.0001589,2]
[424165608,1780623040000,-791.0,0.00024385,10]
[424165574,1780623040000,-214.1197494,0.00017942,2]
[424165575,1780623040000,-1000.0,0.00018321,2]
[424165583,1780623040000,-188.341,0.00019751,2]
[424165586,1780623040000,-507660.09321014,0.0002,2]
[424165582,1780623040000,-444.0,0.00019751,2]
[424165578,1780623040000,-235.86168113,0.00019078,2]
[424165577,1780623040000,-880.76063328,0.00018844,2]
[424165579,1780623040000,-195.43215753,0.00019452,2]
[424165580,1780623040000,-351.42610567,0.00019452,2]
[424165584,1780623040000,-1419.896,0.00019751,2]
[424165585,1780623040000,-10000.0,0.0002,2]
[424165581,1780623040000,-2206.0,0.00019751,2]
[424165587,1780623040000,-1000.0,0.00020153,2]
[424165576,1780623040000,-767.92208879,0.00018574,2]
[424165589,1780623040000,-300.0,0.000204,2]
[424165601,1780623040000,-5670.36649732,0.00022331,2]
[424165596,1780623040000,-182.36432599,0.00021918,2]
[424165597,1780623040000,-168.97793137,0.00021918,2]
[424165595,1780623040000,-215.70930858,0.00020537,2]
[424165594,1780623040000,-300.0,0.000204,3]
[424165593,1780623040000,-300.0,0.000204,2]
[424165598,1780623040000,-1000.0,0.00022168,10]
[424165591,1780623040000,-300.0,0.000204,2]
[424165599,1780623040000,-492.0,0.00022168,10]
[424165590,1780623040000,-300.0,0.000204,3]
[424165588,1780623040000,-244.0,0.00020153,2]
[424165600,1780623040000,-500.0,0.00022192,2]
[424165592,1780623040000,-300.0,0.000204,3]
[424165652,1780623041000,-247.26144772,0.000338,120]
[424165653,1780623041000,-320.96196854,0.000338,120]
[424165654,1780623041000,-203.44606082,0.000338,120]
[424165655,1780623041000,-614.63527069,0.000338,120]
[424165659,1780623041000,-500.0,0.00034521,16]
[424165658,1780623041000,-355.0,0.0003452,3]
[424165657,1780623041000,-355.0,0.00034246,2]
[424165650,1780623041000,-614.63527069,0.000328,120]
[424165661,1780623041000,-185.0,0.00034751,2]
[424165662,1780623041000,-355.0,0.00034794,4]
[424165664,1780623041000,-355.0,0.00035342,6]
[424165660,1780623041000,-500.0,0.00034521,16]
[424165649,1780623041000,-203.44606082,0.000328,120]
[424165656,1780623041000,-151.0,0.000338,120]
[424165651,1780623041000,-34191.72692972,0.000332,117]
[424165635,1780623041000,-203.44606082,0.000309,120]
[424165643,1780623041000,-500.0,0.00032329,12]
[424165647,1780623041000,-247.26144772,0.000328,120]
[424165646,1780623041000,-1000.0,0.00032457,30]
[424165644,1780623041000,-1000.0,0.00032457,30]
[424165639,1780623041000,-247.26144772,0.000318,120]
[424165641,1780623041000,-203.44606082,0.000318,120]
[424165642,1780623041000,-614.63527069,0.000318,120]
[424165640,1780623041000,-320.96196854,0.000318,120]
[424165637,1780623041000,-151.0,0.000315,120]
[424165648,1780623041000,-320.96196854,0.000328,120]
[424165638,1780623041000,-185.0,0.00031751,2]
[424165636,1780623041000,-614.63527069,0.000309,120]
[424165634,1780623041000,-320.96196854,0.000309,120]
[424165674,1780623041000,-6619.1383652,0.00036571,2]
[424165645,1780623041000,-1000.0,0.00032457,30]
[424165663,1780623041000,-355.0,0.00035068,5]
[424165687,1780623041000,-151.0,0.00038356,14]
[424165666,1780623041000,-1000.0,0.00035703,30]
[424165699,1780623041000,-697.77725544,0.00019998,2]
[424165694,1780623041000,-151.0,0.00038356,14]
[424165696,1780623041000,-355.0,0.00038356,17]
[424165692,1780623041000,-151.0,0.00038356,14]
[424165665,1780623041000,-355.0,0.00035616,7]
[424165695,1780623041000,-292.0,0.00038356,14]
[424165698,1780623041000,-1797.68474699,0.00038398,120]
[424165693,1780623041000,-151.0,0.00038356,14]
[424165697,1780623041000,-541899.68678197,0.00038398,120]
[424165689,1780623041000,-151.0,0.00038356,14]
[424165690,1780623041000,-151.0,0.00038356,14]
[424165683,1780623041000,-355.0,0.00037534,14]
[424165688,1780623041000,-151.0,0.00038356,14]
[424165682,1780623041000,-232.361,0.00037346,48]
[424165684,1780623041000,-185.0,0.00037751,2]
[424165691,1780623041000,-151.0,0.00038356,14]
[424165679,1780623041000,-355.0,0.00036986,12]
[424165681,1780623041000,-355.0,0.0003726,13]
[424165672,1780623041000,-355.0,0.00036164,9]
[424165667,1780623041000,-1000.0,0.00035703,30]
[424165668,1780623041000,-1000.0,0.00035703,30]
[424165669,1780623041000,-715.0,0.00035703,30]
[424165671,1780623041000,-151.0,0.000361,120]
[424165670,1780623041000,-355.0,0.0003589,8]
[424165673,1780623041000,-355.0,0.00036438,10]
[424165676,1780623041000,-3489.4438017,0.00036571,2]
[424165677,1780623041000,-183.7242899,0.00036571,2]
[424165678,1780623041000,-355.0,0.00036712,11]
[424165686,1780623041000,-355.0,0.00038082,16]
[424165685,1780623041000,-355.0,0.00037808,15]
[424165675,1780623041000,-5647.0703086,0.00036571,2]
[424165680,1780623041000,-472.1282339,0.00037205,2]
[424165710,1780623044000,-2000.0,0.000389,120]
[424165718,1780623044000,-474.57,0.000392,120]
[424165728,1780623044000,-150.0,0.0004,2]
[424165717,1780623044000,-355.0,0.00039178,20]
[424165722,1780623044000,-355.0,0.00039452,21]
[424165724,1780623044000,-355.0,0.00039726,22]
[424165723,1780623044000,-158.58277196,0.000395,14]
[424165714,1780623044000,-2000.0,0.00039,120]
[424165719,1780623044000,-212.79,0.000392,120]
[424165716,1780623044000,-13000.64741527,0.00039,120]
[424165707,1780623044000,-355.0,0.0003863,18]
[424165704,1780623044000,-321067.61389756,0.00019998,2]
[424165708,1780623044000,-992.42091561,0.00038653,30]
[424165713,1780623044000,-355.0,0.00038904,19]
[424165709,1780623044000,-324.74441203,0.0003867,120]
[424165715,1780623044000,-5873.64000778,0.00039,120]
[424165706,1780623044000,-151.0,0.000384,120]
[424165705,1780623044000,-433752.42241773,0.00038398,120]
[424165703,1780623044000,-5000.0,0.00019798,2]
[424165727,1780623044000,-2000.0,0.000399,120]
[424165712,1780623044000,-767.92208879,0.000389,120]
[424165720,1780623044000,-212.47,0.000392,120]
[424165711,1780623044000,-100000.0,0.000389,120]
[424165721,1780623044000,-212.47,0.000392,30]
[424165745,1780623044000,-41828.03634868,0.0004,30]
[424165748,1780623044000,-168383.25571729,0.0004,120]
[424165746,1780623044000,-39049.47821946,0.0004,120]
[424165747,1780623044000,-341980.53457753,0.0004,120]
[424165741,1780623044000,-369.05,0.0004,60]
[424165743,1780623044000,-227.92,0.0004,60]
[424165744,1780623044000,-247.20922337,0.0004,15]
[424165742,1780623044000,-10797.0,0.0004,120]
[424165736,1780623044000,-223.59026394,0.0004,120]
[424165735,1780623044000,-14004.1741666,0.0004,10]
[424165726,1780623044000,-3687.06251641,0.000398,120]
[424165739,1780623044000,-500.0,0.0004,120]
[424165725,1780623044000,-1600.0,0.000398,120]
[424165729,1780623044000,-500.0,0.0004,120]
[424165732,1780623044000,-1000.0,0.0004,30]
[424165740,1780623044000,-1144.93245452,0.0004,120]
[424165734,1780623044000,-5000.0,0.0004,60]
[424165730,1780623044000,-1151.70909897,0.0004,30]
[424165731,1780623044000,-500.0,0.0004,2]
[424165738,1780623044000,-177960.70300328,0.0004,120]
[424165737,1780623044000,-152.0,0.0004,120]
[424165733,1780623044000,-168.0,0.0004,120]
[424166850,1780623112000,180.199893,0.00023431,30]
[424166864,1780623349000,159.0,0.0002,120]
[424166865,1780623350000,159.0,0.000231,120]
[424166941,1780624232000,-3465.85544935,0.00011761,2]
[424166948,1780624232000,-639.41418087,0.00011761,2]
[424167565,1780624242000,-1177.08174382,0.00012127,2]
[424167563,1780624242000,-894.73036978,0.00011761,2]
[424167630,1780624244000,-281.86328143,0.00013193,2]
[424167629,1780624244000,-500.0,0.00013193,2]
[424167632,1780624244000,-500.0,0.00013193,2]
[424167631,1780624244000,-500.0,0.00013193,2]
[424167637,1780624244000,-500.0,0.00013193,2]
[424167621,1780624244000,-206.29688386,0.00013193,2]
[424167627,1780624244000,-500.0,0.00013193,2]
[424167636,1780624244000,-500.0,0.00013193,2]
[424167626,1780624244000,-322.0010541,0.00013193,2]
[424167625,1780624244000,-500.0,0.00013193,2]
[424167633,1780624244000,-500.0,0.00013193,2]
[424167628,1780624244000,-500.0,0.00013193,2]
[424167639,1780624244000,-200.729187,0.00013452,2]
[424167647,1780624244000,-200.729187,0.00015151,2]
[424167648,1780624244000,-200.729187,0.00015718,2]
[424167649,1780624244000,-200.729187,0.00016284,2]
[424167650,1780624244000,-864.0,0.00016406,2]
[424167646,1780624244000,-720.0,0.00014915,2]
[424167620,1780624244000,-500.0,0.00013193,2]
[424167640,1780624244000,-600.0,0.00013559,2]
[424167641,1780624244000,-501.0965171,0.00013698,2]
[424167642,1780624244000,-302.87635592,0.00013698,2]
[424167644,1780624244000,-200.729187,0.00014019,2]
[424167645,1780624244000,-200.729187,0.00014585,2]
[424167643,1780624244000,-1000.0,0.00013699,2]
[424167651,1780624244000,-1000.0,0.00018047,2]
[424167638,1780624244000,-1737.02146837,0.00013194,2]
[424167622,1780624244000,-500.0,0.00013193,2]
[424167616,1780624244000,-500.0,0.00013193,2]
[424167618,1780624244000,-500.0,0.00013193,2]
[424167593,1780624244000,-1206.63751398,0.00012127,2]
[424167596,1780624244000,-455.0,0.00013191,2]
[424167597,1780624244000,-500.0,0.00013193,2]
[424167598,1780624244000,-500.0,0.00013193,2]
[424167594,1780624244000,-280.66,0.0001293,2]
[424167595,1780624244000,-1294.06203814,0.00013093,2]
[424167599,1780624244000,-500.0,0.00013193,2]
[424167600,1780624244000,-500.0,0.00013193,2]
[424167602,1780624244000,-500.0,0.00013193,2]
[424167601,1780624244000,-500.0,0.00013193,2]
[424167603,1780624244000,-500.0,0.00013193,2]
[424167607,1780624244000,-500.0,0.00013193,2]